Cogmind - Beta 15 @@@ ROGUE MODE // 2025.10.06 @ 14:19:32 Player: DietSnapple Result: Destroyed by S-10 Pest with Light Assault Rifle Performance ------------- Evolutions (0) 0 Regions Visited (2) 400 Robots Destroyed (25) 125 Value Destroyed (438) 438 Prototype IDs (2) 40 Alien Tech Used (0) 0 Bonus (0) 0 TOTAL SCORE: 1003 Bonus ------- None Cogmind --------- Core Integrity 0/250 Matter 287/300 Energy 93/100 System Corruption 0% Temperature Cool (0) Movement Rolling (80) Location -10/Mines Parts ------- > --- POWER (1) -------- (None) > --- PROPULSION (2) --- Wheel > --- UTILITY (2) ------ Signal Interpreter Hacking Suite > --- WEAPON (2) ------- Light Assault Rifle > --- INVENTORY (5) ---- Ion Engine Compact Wheel Small Storage Unit Signal Interpreter Peak State ------------ > --- POWER ------------ Light Nuclear Core > --- PROPULSION ------- Wheel Compact Wheel > --- UTILITY ---------- Signal Interpreter Hacking Suite > --- WEAPON ----------- Particle Gun Light Assault Rifle > --- INVENTORY -------- Light Ion Engine Flight Unit Small Storage Unit Signal Interpreter [Rating: 12] Favorites ----------- Power Ion Engine Engine Ion Engine Power Core Light Nuclear Core Propulsion Compact Wheel Wheel Compact Wheel Utility Signal Interpreter Storage Small Storage Unit Processor Signal Interpreter Hackware Hacking Suite Weapon Light Assault Rifle Energy Gun Particle Gun Ballistic Gun Light Assault Rifle Build | -11 -10 -10 ------- Run | Yrd Mat Min Slots Evolved . | . . . Power . | . . . Propulsion . | . . . Utility . | . . . Weapon . | . . . Parts Attached 16 | 6 9 1 Power 3 | 1 2 . Engine 2 | 1 1 . Core 1 | . 1 . Reactor . | . . . Propulsion 6 | 2 3 1 Treads . | . . . Leg . | . . . Wheel 6 | 2 3 1 Hover . | . . . Flight . | . . . Utility 3 | 1 2 . Device . | . . . Storage 1 | 1 . . Processor 1 | . 1 . Hackware 1 | . 1 . Protection . | . . . Artifact . | . . . Weapon 4 | 2 2 . Energy Gun 1 | . 1 . Energy Cannon . | . . . Ballistic Gun 3 | 2 1 . Ballistic Cannon . | . . . Launcher . | . . . Special Weapon . | . . . Impact Weapon . | . . . Slashing Weapon . | . . . Piercing Weapon . | . . . Special Melee Weapon . | . . . Unidentified Prototypes . | . . . Parts Lost 11 | . 7 4 Power 3 | . 2 1 Propulsion 5 | . 3 2 Utility . | . . . Weapon 3 | . 2 1 Highest Loss Streak 4 | . 3 4 To Critical Strikes . | . . . Average Backups 5 | 1 6 4 Power 1 | . 1 1 Propulsion 2 | . 2 1 Utility 1 | . 1 2 Weapon . | . . . Tool/Special . | . . . Unused Backups 9 | . 6 3 Power 2 | . 1 1 Propulsion 6 | . 5 1 Utility 1 | . . 1 Weapon . | . . . Tool/Special . | . . . Average Slot Usage (%) 95 | . 94 98 Engine 9 | . 8 13 Core 3 | . 5 . Wheel 27 | . 27 27 Storage 8 | . 11 . Processor 13 | . 13 14 Hackware 5 | . 2 14 Energy Gun 5 | . 2 13 Ballistic Gun 20 | . 22 14 Peak Build Rating 12 | 6 12 10 Average Rating 8 | 4 7 9 On Entrance 5 | . 6 10 Naked Turns . | . . . Heaviest Build 14 | 12 14 7 Greatest Support 32 | 26 32 26 Greatest Overweight (x) . | . . . Average Overweight (x) . | . . . Largest Inventory Capacity 8 | 8 8 5 Average Capacity 6 | 6 7 5 Most Carried 8 | 4 8 5 Average Carried 5 | 1 6 4 Final Capacity 8 | 8 5 5 Final Carried 4 | 4 4 4 Class Distribution -------------------- 66% | Mutant 33% | Scavenger-Mutant Dominant Class ---------------- Mutant | -10/Materials Scavenger-Mutant | -10/Mines Resources | -11 -10 -10 ----------- Run | Yrd Mat Min Matter Collected 453 | 188 251 14 Remotely . | . . . Salvage Created 786 | . 551 235 Parts 65 | . 49 16 Haulers Intercepted . | . . . Recyclers Shooed 1 | . 1 . Parts Field Recycled . | . . . Retrieved Matter . | . . . Parts Self-Destructed . | . . . Prevented . | . . . Kills | -11 -10 -10 ------- Run | Yrd Mat Min Combat Hostiles Destroyed 17 | . 10 7 Guns 17 | . 10 7 Classes Destroyed 7 | . 7 . Worker 1 | . 1 . Tunneler 1 | . 1 . Recycler 3 | . 2 1 Operator 1 | . 1 . Watcher 2 | . 2 . Swarmer 10 | . 5 5 Grunt 7 | . 5 2 Best Kill Streak 4 | . 4 3 Combat Bots Only 3 | . 2 3 Max Kills in Single Turn 1 | . 1 1 Gunslinging . | . . . Exploded . | . . . Melee . | . . . Uniques/NPCs Destroyed . | . . . Combat | -11 -10 -10 -------- Run | Yrd Mat Min Hostile Shots Fired 110 | . 74 36 Missed 27 | . 19 8 Hits 83 | . 55 28 Projectile 83 | . 55 28 Damage Taken 918 | . 652 266 Core 252 | . 153 99 Absorbed by Shields . | . . . Core Remaining (%) 100 | 100 . . Volleys Fired 89 | . 68 21 Largest 2 | . 2 2 Hottest 85 | . 85 85 Shots Fired 156 | . 119 37 Gun 156 | . 119 37 Cannon . | . . . Launcher . | . . . Special . | . . . Kinetic 132 | . 111 21 Thermal 24 | . 8 16 Explosive . | . . . Electromagnetic . | . . . Robot Hit Streak 13 | . 12 13 Robot Miss Streak 5 | . 5 2 Penetration Max . | . . . Secondary Targets 2 | . 1 1 Max Gunslinging Chain 1 | . 1 1 Shots Hit Robots 92 | . 70 22 Core Hits 42 | . 30 12 Critical Kills 1 | . 1 . Critical Parts Destroyed . | . . . Critical Strikes 1 | . 1 . Destroy 1 | . 1 . Melee Attacks . | . . . Impact . | . . . Slashing . | . . . Piercing . | . . . Sneak Attacks . | . . . Combat Hostiles . | . . . Follow-up Attacks . | . . . Damage Inflicted 880 | . 634 246 Guns 880 | . 634 246 Cannons . | . . . Explosions . | . . . Melee . | . . . Ramming . | . . . Kinetic 611 | . 511 100 Thermal 269 | . 123 146 Explosive . | . . . Electromagnetic . | . . . Impact . | . . . Slashing . | . . . Piercing . | . . . Highest Corruption . | . . . Average Corruption . | . . . Corruption Purged . | . . . Corruption Blocked . | . . . Overload Shots . | . . . Overflow Damage . | . . . Projectiles . | . . . Explosions . | . . . Melee . | . . . Knockbacks . | . . . Impact . | . . . Kinetic . | . . . Secondary . | . . . Self-Inflicted Damage . | . . . Shots . | . . . Rammed . | . . . Targets Rammed . | . . . Kicked . | . . . Crushed . | . . . Highest Temperature 220 | . 85 220 Average Temperature 54 | . 19 90 Received Heat Transfer 252 | . 204 48 Siege Activations . | . . . Martial Activations . | . . . Shielding Activations . | . . . Robots Disrupted . | . . . Combat Hostiles . | . . . Robots Corrupted . | . . . Combat Hostiles . | . . . Parts Fried . | . . . Impact Corruptions . | . . . Robots Melted . | . . . Combat Hostiles . | . . . Parts Melted . | . . . Heat Transferred 629 | . 296 333 Parts Sabotaged . | . . . Parts Stolen . | . . . Parts Stripped . | . . . Power Chain Reactions . | . . . Alert | -11 -10 -10 ------- Run | Yrd Mat Min Maximum Alert Level . | . . . Low Security (%) 100 | 100 100 100 Level 1 . | . . . Level 2 . | . . . Level 3 . | . . . Level 4 . | . . . Level 5 . | . . . High Security . | . . . Max Security . | . . . Peak Influence 88 | . 88 60 Initial 9 | . . 9 Average 24 | . 28 17 Influence Increases 547 | . 382 165 Destroy 0b10 Robot/C 340 | . 200 140 Destroy 0b10 Robot/NC 40 | . 35 5 Destroy Leader 74 | . 54 20 Successful Hack 33 | . 33 . Lose Combat Pursuer 60 | . 60 . Influence Decreases 497 | . 356 141 Entered New Map 17 | . . 17 Time Decay 394 | . 310 84 Lost Part 86 | . 46 40 Squads Dispatched 2 | . 2 . Investigation 1 | . 1 . Extermination . | . . . Reinforcement 1 | . 1 . Assault . | . . . Garrison . | . . . Intercept . | . . . Searches Triggered . | . . . Construction Impeded . | . . . Haulers Reinforced . | . . . Active Scanning Responses . | . . . Cargo Convoy Interrupts . | . . . Stealth | -11 -10 -10 --------- Run | Yrd Mat Min Distress Signals 2 | . 2 . Communications Jammed . | . . . Distress Signals . | . . . Times Spotted 36 | . 28 8 Peak Tracking Total 4 | . 4 3 Tactical Retreats 4 | . 4 . Traps | -11 -10 -10 ------- Run | Yrd Mat Min Traps Triggered 1 | . 1 . Indirectly . | . . . Trap Hack Attempts . | . . . Triggered . | . . . Disarmed . | . . . Reprogrammed . | . . . Reused . | . . . Traps Extracted . | . . . Installed . | . . . Triggered . | . . . Machines | -11 -10 -10 ---------- Run | Yrd Mat Min Machines Disabled . | . . . Max in Single Turn . | . . . Machines Repaired . | . . . Machines Dismantled . | . . . Machines Sabotaged . | . . . Overloaded Fab Kills . | . . . Hacking | -11 -10 -10 --------- Run | Yrd Mat Min Machines Accessed 6 | . 6 . Terminals 6 | . 6 . Fabricators . | . . . Repair Stations . | . . . Recycling Units . | . . . Scanalyzers . | . . . Garrison Access . | . . . Total Hacks 19 | . 19 . Successful 10 | . 10 . Failed 9 | . 9 . Catastrophic 3 | . 3 . Database Lockouts . | . . . Manual 20 | . 20 . Terminals 19 | . 19 . Fabricators . | . . . Repair Stations . | . . . Recycling Units . | . . . Scanalyzers . | . . . Garrison Access . | . . . Terminal Hacks 5 | . 5 . Robot Analysis 1 | . 1 . Prototype ID Bank 1 | . 1 . Branch Access Points 1 | . 1 . Terminal Index 1 | . 1 . Investigation Status 1 | . 1 . Fabricator Hacks . | . . . Repair Station Hacks . | . . . Recycling Unit Hacks . | . . . Scanalyzer . | . . . Garrison Access Hacks . | . . . Unauthorized Hacks 5 | . 5 . Terminals 5 | . 5 . Botnet 4 | . 4 . Operators 1 | . 1 . Fabricators . | . . . Repair Stations . | . . . Recycling Units . | . . . Scanalyzers . | . . . Garrison Access . | . . . Data Cores Recovered . | . . . Used . | . . . Hacking Detections 6 | . 6 . Full Trace Events 3 | . 3 . Feedback Events . | . . . Feedback Blocked . | . . . Robot Schematics Acquired . | . . . Robots Built . | . . . Authchips . | . . . Time . | . . . Total Robot Build Rating . | . . . Part Schematics Acquired . | . . . Parts Built . | . . . Authchips . | . . . Time . | . . . Total Part Build Rating . | . . . Parts Repaired . | . . . Time . | . . . Parts Recycled . | . . . Recycled Matter . | . . . Retrieved Matter . | . . . Retrieved Components . | . . . Parts Scanalyzed . | . . . Part Schematics Acquired . | . . . Parts Damaged . | . . . Bothacking | -11 -10 -10 ------------ Run | Yrd Mat Min Used RIF Installer . | . . . Robots Hacked . | . . . Non-combat . | . . . Combat . | . . . Robot Hacks Applied . | . . . Relay Couplers Released . | . . . Fabnet Peak Effective % . | . . . Robots Rewired . | . . . Allies Hacked . | . . . Hacks Repelled . | . . . Allies | -11 -10 -10 -------- Run | Yrd Mat Min Total Allies . | . . . Largest Group . | . . . Highest-Rated Group . | . . . Highest-Rated Ally . | . . . Total Orders . | . . . Ally Attacks . | . . . Total Damage . | . . . Kills . | . . . Allies Corrupted . | . . . Allies Melted . | . . . Intel | -11 -10 -10 ------- Run | Yrd Mat Min Active Infowar (turns) . | . . . Robot Analysis Total 1 | . 1 . Derelict Logs Recovered 2 | . . 2 Drone Launches . | . . . Drone Recoveries . | . . . Exploration | -11 -10 -10 ------------- Run | Yrd Mat Min Turns Passed 1225 | 71 857 297 Spaces Moved 1003 | 67 675 261 Core 6 | 6 . . Treads . | . . . Legs . | . . . Wheels 997 | 61 675 261 Hover . | . . . Flight . | . . . Fastest Speed 50 | 50 90 80 Average Speed 92 | 86 93 89 Slowest Speed 100 | 100 100 90 Overloaded Moves . | . . . Propulsion Burnouts . | . . . Robots Hopped . | . . . Potential Cave-ins . | . . . Cave-ins Triggered . | . . . Exploration Rate (%) 48 | 3 81 60 Regions Visited 2 Branch Regions 1 Pre-discovered Areas 1 | . . 1 Known Exits Taken 1 | . 1 . Unknown Exits Taken 1 | 1 . . Scrap Searched 1 | . . 1 Spaces Dug . | . . . Terrain Destroyed . | . . . Melee . | . . . Projectile . | . . . AOE . | . . . Terrain Rammed . | . . . Walls Destroyed . | . . . Machines Disabled . | . . . Actions | -11 -10 -10 --------- Run | Yrd Mat Min Total 1173 | 76 806 291 Wait 42 | . 35 7 Move 1001 | 66 674 261 Hop . | . . . Pick Up 17 | 4 12 1 Fast Attach 7 | 6 1 . Attach 9 | . 8 1 Detach 1 | . 1 . Swap 1 | . 1 . Drop 6 | . 6 . Fire 89 | . 68 21 Melee . | . . . Ram . | . . . Kick . | . . . Crush . | . . . Escape Stasis . | . . . Rewire . | . . . Trap . | . . . Miscellaneous . | . . . Route ------- -11/Scrapyard -10/Materials (discovered 5 exits: [*Mat x2] / *Min x2 / [*Sub]) -10/Mines (discovered 1 exit: [*Mat]) History --------- Turn | Location | Event 16 | -11/Scrapyard | Discovered new exit (range 16) 72 | -11/Scrapyard | Entered Materials 266 | -10/Materials | Discovered new exit (range 11) 302 | -10/Materials | Build established: Mutant 350 | -10/Materials | Discovered new exit (range 12) 492 | -10/Materials | Discovered new exit (range 12) 551 | -10/Materials | Lost 3 parts (1p1n1w) 555 | -10/Materials | Core integrity fell below 50% 631 | -10/Materials | Discovered new exit (range 11) 780 | -10/Materials | Identified exit to Mines 929 | -10/Materials | Entered Mines 1013 | -10/Mines | Discovered new exit (range 7) 1110 | -10/Mines | Learned Materials garrison access intel 1158 | -10/Mines | Build established: Scavenger-Mutant 1178 | -10/Mines | Core integrity fell below 20% 1226 | -10/Mines | Destroyed by S-10 Pest with Light Assault Rifle Last Messages --------------- 01110_ Acquired derelict log, extracted data. Data stored: Materials garrison access intel. 01112_ Searching scrap... 01112_ Found Datajack. 01112_ Found Com. Wheel. 01112_ Found 58 Matter. 01113_ Acquired 8 matter. 01138_ Acquired derelict log, extracted data. World map updated: -8/Materials. 01175_ S-10 Pest destroyed. 01185_ Acquired 4 matter. 01190_ S-10 Pest destroyed. 01193_ Acquired 2 matter. 01212_ Wheel destroyed. 01213_ S-10 Pest destroyed. 01213_ Switching to secondary target: S-10 Pest. 01215_ Particle Gun destroyed. 01216_ Com. Wheel destroyed. 01219_ Lgt. Ion Engine destroyed. 01222_ S-10 Pest destroyed. Map ----- +----------------------------------------------------+ | | | | | | | | | | | | | | | | | | | | | | | | | | | | | | | | | | | | | | | | | ????????????????????????????????????? | | ????????????????????????????????????? | | ????????????????????????????????????? | | ????????????################????????? | | ????????? s===% #????????? | | ????????? *%@ #????????? | | ????????????############# ##???????? | | ????????????????????????# =#???????? | | ????????????????????????# =%#???????? | | ????????????????????????###=#???????? | | ??????????????????#???????#=#???????? | | ?????????????????## ######%#???????? | | ?????????????????# %=###?????? | | ?????????????????# * ##????? | | ?????????????????# ## ##???? | | ?????????????????# ??## ##??? | | ?????????????????# ????## #??? | | ?????????????????## ??????# #??? | | ??????????????????##???????# ##??? | | ???????????????????????????## #???? | | ????????????????????????????# ##??? | | ????????????????????????????# #??? | | ????????????????????????????# #??? | | ????????????????????????????# #??? | | ????????????????????????????# ##??? | | ????????????????????????##### #???? | | ????????????????????????? ### ##???? | | ?????????????????????????# #?# #????? | | ?????????????????????????# ### #????? | | ?????????????????#???????# #????? | +----------------------------------------------------+ Best States ------------- Heat Dissipation 25 Energy Generation 14 Energy Capacity 250 Matter Stores 300 Matter Capacity 300 Sight Range 16 Terrain Scan Density 10 Evasion (%) 42 Offensive Hacking 10 Item Schematics ----------------- None Robot Schematics ------------------ None Fabricated ------------ Nothing Repaired ---------- Nothing Alien Tech Used ----------------- None Achievements -------------- None Challenges ------------ None Game ------ Seed CoolingProcessingStrikerail Manual? 0 Play Time 00:14:14 Cumulative 13.5 hours Start 2025.10.06 @ 13:50:25 End 2025.10.06 @ 14:19:32 Sessions 1 Manual Loads 0 Difficulty Rogue Special Mode None Game No. 41 Rogue 34 Adventurer 7 Explorer 0 Win Type - Total 0 Types 0/0/0/0/0/0/0/0/0/0 Lore% 3 Gallery% 16 Achievement% 16 Wizard Run 0 Options --------- Layout 1 ASCII 0 Keyboard 1 Movement Vi Keybinds 0 Fullscreen 1 Font 24/Smallcaps Map View 76x35 Zoom Use 0% Tactical HUD 1 Map Filters NONE Filters NONE Steam 1 RUN: 08ac923d-58eb-487c-9823-0bb06f90c576